fUSD/lending_fUSD_20250629
["ID","MTS","AMOUNT","RATE_DAILY","PERIOD"]
[368514320,1751194267283,-490.0,0.00027945,3]
[368514321,1751194267292,-490.0,0.00027945,3]
[368514322,1751194267302,-490.0,0.00027945,3]
[368514323,1751194267311,-953.82,0.00027945,3]
[368514324,1751194267321,-490.0,0.00027945,3]
[368514325,1751194267330,-520.1412554,0.00027945,3]
[368514326,1751194267352,-603.44,0.00027945,3]
[368514327,1751194267370,-504.49988813,0.00027945,3]
[368514328,1751194267391,-633.93,0.00027945,3]
[368514329,1751194267409,-490.0,0.00027945,3]
[368514330,1751194267424,-490.0,0.00027945,3]
[368514331,1751194267443,-864.91,0.00027945,3]
[368514332,1751194267462,-490.0,0.00027945,3]
[368514333,1751194267482,-497.74,0.00027945,3]
[368514334,1751194267500,-490.0,0.00027945,3]
[368514335,1751194267518,-490.0,0.00027945,3]
[368514336,1751194267536,-490.0,0.00027945,3]
[368514337,1751194267551,-490.0,0.00027945,3]
[368514338,1751194267572,-490.0,0.00027945,3]
[368514339,1751194267584,-490.0,0.00027945,3]
[368514340,1751194267603,-756.13,0.00027945,3]
[368514341,1751194267616,-490.0,0.00027945,3]
[368514342,1751194267633,-542.44,0.00027945,3]
[368514343,1751194267647,-1332.54,0.00027945,3]
[368514344,1751194267662,-863.82,0.00027945,3]
[368514345,1751194267678,-490.0,0.00027945,3]
[368514346,1751194267693,-490.0,0.00027945,3]
[368514347,1751194267706,-490.0,0.00027945,3]
[368514348,1751194267722,-1500.0,0.00027945,14]
[368514349,1751194267736,-591.84,0.00027945,3]
[368514350,1751194267753,-490.0,0.00027945,3]
[368514351,1751194267767,-490.0,0.00027945,3]
[368514352,1751194267783,-398.70674683,0.00027945,3]
[368514353,1751194267798,-490.0,0.00027945,3]
[368514354,1751194267813,-665.61,0.00027945,3]
[368514355,1751194267828,-769.64,0.00027945,3]
[368514356,1751194267842,-490.0,0.00027945,3]
[368514357,1751194267858,-555.79,0.00027945,3]
[368514358,1751194267873,-490.0,0.00027945,3]
[368514359,1751194267888,-490.0,0.00027945,3]
[368514360,1751194267903,-490.0,0.00027945,3]
[368514361,1751194267919,-627.43,0.00027945,3]
[368514362,1751194267934,-491.22,0.00027945,3]
[368514363,1751194267949,-490.0,0.00027945,3]
[368514364,1751194267967,-490.0,0.00027945,3]
[368514365,1751194267983,-617.55,0.00027945,3]
[368514366,1751194267998,-1124.81,0.00027945,3]
[368514367,1751194268013,-621.58,0.00027945,3]
[368514368,1751194268028,-1265.66,0.00027945,3]
[368514369,1751194268044,-1066.44,0.00027945,3]
[368514370,1751194268059,-490.0,0.00027945,3]
[368514371,1751194268073,-490.0,0.00027945,3]
[368514372,1751194268088,-606.66,0.00027945,3]
[368514373,1751194268107,-1063.39,0.00027945,3]
[368514374,1751194268128,-1075.06,0.00027945,3]
[368514375,1751194268143,-596.29,0.00027945,3]
[368514376,1751194268158,-490.0,0.00027945,3]
[368514377,1751194268172,-490.0,0.00027945,3]
[368514378,1751194268187,-620.94,0.00027945,3]
[368514379,1751194268202,-490.0,0.00027945,3]
[368514380,1751194268217,-490.0,0.00027945,3]
[368514381,1751194268232,-490.0,0.00027945,3]
[368514382,1751194268247,-667.18,0.00027945,3]
[368514383,1751194268263,-684.75,0.00027945,3]
[368514384,1751194268278,-687.84,0.00027945,3]
[368514385,1751194268294,-490.0,0.00027945,3]
[368514386,1751194268308,-1683.35,0.00027945,3]
[368514387,1751194268324,-925.73,0.00027945,3]
[368514388,1751194268339,-884.56,0.00027945,3]
[368514389,1751194268354,-490.0,0.00027945,3]
[368514390,1751194268368,-521.5,0.00027945,3]
[368514391,1751194268383,-1254.49,0.00027945,3]
[368514392,1751194268398,-558.94,0.00027945,3]
[368514393,1751194268414,-490.0,0.00027945,3]
[368514394,1751194268429,-490.0,0.00027945,3]
[368514395,1751194268443,-490.0,0.00027945,3]
[368514396,1751194268458,-1250.48,0.00027945,3]
[368514397,1751194268473,-490.0,0.00027945,3]
[368514398,1751194268489,-490.0,0.00027945,3]
[368514399,1751194268503,-490.0,0.00027945,3]
[368514400,1751194268518,-681.06,0.00027945,3]
[368514401,1751194268533,-490.0,0.00027945,3]
[368514402,1751194268548,-490.0,0.00027945,3]
[368514403,1751194268563,-877.54,0.00027945,3]
[368514404,1751194268578,-1517.03,0.00027945,3]
[368514405,1751194268593,-490.0,0.00027945,3]
[368514406,1751194268607,-490.0,0.00027945,3]
[368514407,1751194268622,-490.0,0.00027945,3]
[368514408,1751194268637,-586.92,0.00027945,3]
[368514409,1751194268651,-760.76,0.00027945,3]
[368514410,1751194268666,-490.0,0.00027945,3]
[368514411,1751194268681,-490.0,0.00027945,3]
[368514412,1751194268696,-1020.66,0.00027945,3]
[368514413,1751194268710,-1866.57,0.00027945,3]
[368514414,1751194268726,-1288.09,0.00027945,3]
[368514415,1751194268740,-594.3400755,0.00027945,3]
[368514416,1751194268756,-776.5,0.00027945,3]
[368514417,1751194268772,-490.0,0.00027945,3]
[368514418,1751194268787,-490.0,0.00027945,3]
[368514419,1751194268802,-640.5,0.00027945,3]
[368514420,1751194268816,-490.0,0.00027945,3]
[368514421,1751194268831,-490.0,0.00027945,3]
[368514422,1751194268845,-499.32,0.00027945,3]
[368514423,1751194268860,-499.32,0.00027945,3]
[368514424,1751194268875,-689.12,0.00027945,3]
[368514425,1751194268890,-759.09,0.00027945,3]
[368514426,1751194268904,-622.49,0.00027945,3]
[368514427,1751194268918,-930.36,0.00027945,3]
[368514428,1751194268932,-490.0,0.00027945,3]
[368514429,1751194269153,-490.0,0.00027945,3]
[368514430,1751194269165,-936.48,0.00027945,3]
[368514431,1751194269174,-1920.98,0.00027945,3]
[368514432,1751194269183,-492.38866843,0.00027945,3]
[368514433,1751194269192,-490.0,0.00027945,3]
[368514434,1751194269201,-490.0,0.00027945,3]
[368514435,1751194269210,-814.04,0.00027945,3]
[368514436,1751194269220,-1148.44,0.00027945,3]
[368514437,1751194269230,-1544.17,0.00027945,3]
[368514438,1751194269238,-490.0,0.00027945,3]
[368514439,1751194269247,-1773.34,0.00027945,3]
[368514440,1751194269256,-490.0,0.00027945,3]
[368514441,1751194269266,-490.0,0.00027945,3]
[368514442,1751194269275,-616.18786636,0.00027945,3]
[368514443,1751194269284,-522.27,0.00027945,3]
[368514444,1751194269293,-490.0,0.00027945,3]
[368514445,1751194269303,-501.36,0.00027945,3]
[368514446,1751194269312,-159.31891721,0.00027945,3]
[368514447,1751194269321,-490.0,0.00027945,3]
[368514448,1751194269330,-490.0,0.00027945,3]
[368514449,1751194269340,-490.0,0.00027945,3]
[368514450,1751194269349,-648.51,0.00027945,3]
[368514451,1751194269358,-803.16,0.00027945,3]
[368514452,1751194269367,-1313.11,0.00027945,3]
[368514453,1751194269376,-490.0,0.00027945,3]
[368514454,1751194269385,-490.0,0.00027945,3]
[368514455,1751194269395,-490.0,0.00027945,3]
[368514456,1751194269404,-590.5006653,0.00027945,3]
[368514457,1751194269413,-751.58,0.00027945,3]
[368514458,1751194269422,-648.86,0.00027945,3]
[368514459,1751194269432,-1739.9,0.00027945,3]
[368514460,1751194269441,-514.77,0.00027945,3]
[368514461,1751194269450,-490.0,0.00027945,3]
[368514462,1751194269461,-490.0,0.00027945,3]
[368514463,1751194269471,-490.0,0.00027945,3]
[368514464,1751194269480,-490.0,0.00027945,3]
[368514465,1751194269489,-1125.58,0.00027945,3]
[368514466,1751194269498,-667.65,0.00027945,3]
[368514467,1751194269507,-1097.79,0.00027945,3]
[368514468,1751194269516,-745.5,0.00027945,3]
[368514469,1751194269525,-490.0,0.00027945,3]
[368514470,1751194269535,-490.0,0.00027945,3]
[368514471,1751194269545,-490.0,0.00027945,3]
[368514472,1751194269554,-499.9740505,0.00027945,3]
[368514473,1751194269564,-490.0,0.00027945,3]
[368514474,1751194269573,-492.31,0.00027945,3]
[368514475,1751194269582,-847.7,0.00027945,3]
[368514476,1751194269591,-490.0,0.00027945,3]
[368514477,1751194269600,-641.45,0.00027945,3]
[368514478,1751194269609,-1986.36,0.00027945,3]
[368514479,1751194269618,-490.0,0.00027945,3]
[368514480,1751194269627,-490.0,0.00027945,3]
[368514481,1751194269636,-490.0,0.00027945,3]
[368514482,1751194269645,-810.14,0.00027945,3]
[368514483,1751194269655,-613.92,0.00027945,3]
[368514484,1751194269664,-568.22,0.00027945,3]
[368514485,1751194269673,-490.0,0.00027945,3]
[368514486,1751194269683,-490.0,0.00027945,3]
[368514487,1751194269691,-682.37,0.00027945,3]
[368514488,1751194269701,-490.0,0.00027945,3]
[368514489,1751194269710,-703.34,0.00027945,3]
[368514490,1751194269720,-1604.97,0.00027945,3]
[368514491,1751194269729,-490.0,0.00027945,3]
[368514492,1751194269739,-574.73662663,0.00027945,3]
[368514493,1751194269749,-611.61,0.00027945,3]
[368514494,1751194269759,-490.0,0.00027945,3]
[368514495,1751194269769,-1548.89,0.00027945,3]
[368514496,1751194269780,-490.0,0.00027945,3]
[368514497,1751194269790,-490.0,0.00027945,3]
[368514498,1751194269799,-490.0,0.00027945,3]
[368514499,1751194269809,-490.0,0.00027945,3]
[368514500,1751194269819,-490.0,0.00027945,3]
[368514501,1751194269829,-490.0,0.00027945,3]
[368514502,1751194269839,-648.53,0.00027945,3]
[368514503,1751194269849,-929.36,0.00027945,3]
[368514504,1751194269859,-490.0,0.00027945,3]
[368514505,1751194269869,-490.0,0.00027945,3]
[368514506,1751194269879,-490.0,0.00027945,3]
[368514507,1751194269890,-490.0,0.00027945,3]
[368514508,1751194269899,-490.0,0.00027945,3]
[368514509,1751194269909,-708.68,0.00027945,3]
[368514510,1751194269919,-490.0,0.00027945,3]
[368514511,1751194269928,-490.0,0.00027945,3]
[368514512,1751194269938,-490.0,0.00027945,3]
[368514513,1751194269948,-490.0,0.00027945,3]
[368514514,1751194269957,-490.0,0.00027945,3]
[368514515,1751194269973,-490.0,0.00027945,3]
[368514516,1751194269982,-1367.54,0.00027945,3]
[368514517,1751194269992,-490.0,0.00027945,3]
[368514518,1751194270002,-1196.86,0.00027945,3]
[368514519,1751194270012,-946.15,0.00027945,3]
[368514520,1751194270022,-490.0,0.00027945,3]
[368514521,1751194270031,-490.0,0.00027945,3]
[368514522,1751194270040,-490.0,0.00027945,3]
[368514523,1751194270049,-490.0,0.00027945,3]
[368514524,1751194270060,-887.21,0.00027945,3]
[368514525,1751194270078,-497.4441647,0.00027945,3]
[368514526,1751194270088,-1881.05,0.00027945,3]
[368514527,1751194270098,-490.0,0.00027945,3]
[368514528,1751194270107,-680.84,0.00027945,3]
[368514529,1751194270117,-616.22,0.00027945,3]
[368514530,1751194270126,-1625.01,0.00027945,3]
[368514531,1751194270136,-490.0,0.00027945,3]
[368514532,1751194270146,-490.0,0.00027945,3]
[368514533,1751194270155,-684.45,0.00027945,3]
[368514534,1751194270164,-490.0,0.00027945,3]
[368514535,1751194270174,-578.97,0.00027945,3]
[368514536,1751194270183,-534.15,0.00027945,3]
[368514537,1751194270193,-490.0,0.00027945,3]
[368514538,1751194270203,-490.0,0.00027945,3]
[368514539,1751194270213,-260.39688919,0.00027945,3]
[368514540,1751194270223,-490.0,0.00027945,3]
[368514541,1751194270233,-490.0,0.00027945,3]
[368514542,1751194270243,-871.36,0.00027945,3]
[368514543,1751194270253,-529.2,0.00027945,3]
[368514544,1751194270262,-490.0,0.00027945,3]
[368514545,1751194270272,-499.86,0.00027945,3]
[368514546,1751194270281,-612.59,0.00027945,3]
[368514547,1751194270290,-972.25,0.00027945,3]
[368514548,1751194270300,-490.0,0.00027945,3]
[368514549,1751194270309,-1690.95,0.00027945,3]
[368514550,1751194270318,-490.0,0.00027945,3]
[368514551,1751194270328,-490.0,0.00027945,3]
[368514552,1751194270338,-983.04,0.00027945,3]
[368514553,1751194270347,-1999.98,0.00027945,3]
[368514554,1751194270357,-933.91,0.00027945,3]
[368514555,1751194270366,-350.0,0.00027945,3]
[368514556,1751194270376,-567.17,0.00027945,3]
[368514557,1751194270386,-490.0,0.00027945,3]
[368514558,1751194270395,-747.2,0.00027945,3]
[368514559,1751194270404,-490.0,0.00027945,3]
[368514560,1751194270414,-490.0,0.00027945,3]
[368514561,1751194270423,-3120.96,0.00027945,3]
[368514562,1751194270433,-1080.24,0.00027945,3]
[368514563,1751194270442,-490.0,0.00027945,3]
[368514564,1751194270452,-490.0,0.00027945,3]
[368514565,1751194270462,-1141.22,0.00027945,3]
[368514566,1751194270472,-1156.07,0.00027945,3]
[368514567,1751194270482,-490.0,0.00027945,3]
[368514568,1751194270491,-5234.52,0.00027945,3]
[368514569,1751194270501,-723.63,0.00027945,3]
[368514570,1751194270511,-677.66,0.00027945,3]
[368514571,1751194270521,-534.04,0.00027945,3]
[368514572,1751194270530,-6702.81,0.00027945,3]
[368514573,1751194270541,-490.0,0.00027945,3]
[368514574,1751194270551,-795.02175,0.00027945,3]
[368514575,1751194270560,-523.73185261,0.00027945,3]
[368514576,1751194270571,-490.0,0.00027945,3]
[368514577,1751194270580,-873.47,0.00027945,3]
[368514578,1751194270590,-1366.91,0.00027945,3]
[368514579,1751194270600,-5532.56,0.00027945,3]
[368514580,1751194270609,-490.0,0.00027945,3]
[368514581,1751194270619,-1135.48,0.00027945,3]
[368514582,1751194270629,-1476.15,0.00027945,3]
[368514583,1751194270638,-490.0,0.00027945,3]
[368514584,1751194270648,-490.0,0.00027945,3]
[368514585,1751194270658,-490.0,0.00027945,3]
[368514586,1751194270667,-1511.71,0.00027945,3]
[368514587,1751194270677,-490.0,0.00027945,3]
[368514588,1751194270687,-490.0,0.00027945,3]
[368514589,1751194270696,-103112.27,0.00027945,3]
[368514590,1751194270706,-827.69,0.00027945,3]
[368514591,1751194270716,-1080.39,0.00027945,3]
[368514592,1751194270725,-3680.78,0.00027945,3]
[368514593,1751194270735,-657.08,0.00027945,3]
[368514594,1751194270749,-1084.7,0.00027945,3]
[368514595,1751194270759,-818.64,0.00027945,3]
[368514596,1751194270768,-490.0,0.00027945,3]
[368514597,1751194270778,-1676.03,0.00027945,3]
[368514598,1751194270787,-490.0,0.00027945,3]
[368514599,1751194270796,-495.44001266,0.00027945,3]
[368514600,1751194270806,-1841.91,0.00027945,3]
[368514601,1751194270816,-808.31,0.00027945,3]
[368514602,1751194270826,-1771.19,0.00027945,3]
[368514603,1751194270836,-476.15981348,0.00027945,3]
[368514604,1751194270846,-777.13,0.00027945,3]
[368514605,1751194270855,-1397.73,0.00027945,3]
[368514606,1751194270864,-490.0,0.00027945,3]
[368514607,1751194270873,-1103.86,0.00027945,3]
[368514608,1751194270883,-577.88,0.00027945,3]
[368514609,1751194270892,-2621.52,0.00027945,3]
[368514610,1751194270901,-490.0,0.00027945,3]
[368514611,1751194270910,-490.0,0.00027945,3]
[368514612,1751194270919,-1009.96,0.00027945,3]
[368514613,1751194270928,-490.0,0.00027945,3]
[368514614,1751194270938,-490.0,0.00027945,3]
[368514615,1751194270949,-1009.67,0.00027945,3]
[368514616,1751194270960,-1391.51,0.00027945,3]
[368514617,1751194270973,-490.0,0.00027945,3]
[368514618,1751194270982,-490.0,0.00027945,3]
[368514619,1751194270992,-214.21490091,0.00027945,3]
[368514620,1751194271001,-625.681203,0.00027945,3]
[368514621,1751194271011,-2403.19,0.00027945,3]
[368514622,1751194271022,-963.8,0.00027945,3]
[368514623,1751194271032,-504.64,0.00027945,3]
[368514624,1751194271043,-490.0,0.00027945,3]
[368514625,1751194271054,-490.0,0.00027945,3]
[368514626,1751194271063,-867.3,0.00027945,3]
[368514627,1751194271073,-796.93,0.00027945,3]
[368514628,1751194271083,-496.03,0.00027945,3]
[368514629,1751194271093,-1622.82,0.00027945,3]
[368514630,1751194271102,-1469.3,0.00027945,3]
[368514631,1751194271111,-1096.54,0.00027945,3]
[368514632,1751194271121,-994.82,0.00027945,3]
[368514633,1751194271130,-585.7,0.00027945,3]
[368514634,1751194271139,-765.718893,0.00027945,3]
[368514635,1751194271149,-490.0,0.00027945,3]
[368514636,1751194271159,-986.61,0.00027945,3]
[368514637,1751194271168,-1445.24,0.00027945,3]
[368514638,1751194271177,-1284.88,0.00027945,3]
[368514639,1751194271186,-1733.58,0.00027945,3]
[368514640,1751194271196,-1113.61,0.00027945,3]
[368514641,1751194271206,-5329.02,0.00027945,3]
[368514642,1751194271215,-711.13,0.00027945,3]
[368514643,1751194271225,-1340.55,0.00027945,3]
[368514644,1751194271234,-546.693834,0.00027945,3]
[368514645,1751194271244,-529.494333,0.00027945,3]
[368514646,1751194271253,-490.0,0.00027945,3]
[368514647,1751194271263,-490.0,0.00027945,3]
[368514648,1751194271272,-497.58413665,0.00027945,3]
[368514649,1751194271282,-2678.7,0.00027945,3]
[368514650,1751194271291,-490.0,0.00027945,3]
[368514651,1751194271300,-3083.58,0.00027945,3]
[368514652,1751194271309,-490.0,0.00027945,3]
[368514653,1751194271318,-490.0,0.00027945,3]
[368514654,1751194271328,-795.8,0.00027945,3]
[368514655,1751194271337,-490.0,0.00027945,3]
[368514656,1751194271347,-2825.66,0.00027945,3]
[368514657,1751194271356,-765.55,0.00027945,3]
[368514658,1751194271366,-490.0,0.00027945,3]
[368514659,1751194271376,-956.04,0.00027945,3]
[368514660,1751194271387,-1905.65,0.00027945,3]
[368514661,1751194271396,-490.0,0.00027945,3]
[368514662,1751194271405,-493.56856071,0.00027945,3]
[368514663,1751194271415,-490.0,0.00027945,3]
[368514664,1751194271425,-490.0,0.00027945,3]
[368514665,1751194271434,-14415.41,0.00027945,3]
[368514666,1751194271443,-561.38,0.00027945,3]
[368514667,1751194271452,-1701.67,0.00027945,3]
[368514668,1751194271461,-496.82,0.00027945,3]
[368514669,1751194271471,-1039.13,0.00027945,3]
[368514670,1751194271481,-2176.77,0.00027945,3]
[368514671,1751194271490,-1044.7,0.00027945,3]
[368514672,1751194271499,-684.856176,0.00027945,3]
[368514673,1751194271664,-1422.17,0.00027945,3]
[368514674,1751194271674,-1903.71,0.00027945,3]
[368514675,1751194271683,-490.0,0.00027945,3]
[368514676,1751194271692,-490.0,0.00027945,3]
[368514677,1751194271702,-469.899209,0.00027945,3]
[368514678,1751194271712,-467.660477,0.00027945,3]
[368514679,1751194271721,-600.0,0.00027945,3]
[368514680,1751194271731,-495.11870887,0.00027945,3]
[368514681,1751194271740,-490.0,0.00027945,3]
[368514682,1751194271749,-274.25,0.00027945,3]
[368514683,1751194271759,-490.0,0.00027945,3]
[368514684,1751194271768,-1130.93,0.00027945,3]
[368514685,1751194271778,-830.33,0.00027945,3]
[368514686,1751194271787,-600.0,0.00027945,3]
[368514687,1751194271797,-1572.11,0.00027945,3]
[368514688,1751194271807,-2670.56,0.00027945,3]
[368514689,1751194271816,-274.25,0.00027945,3]
[368514690,1751194271826,-604.44,0.00027945,3]
[368514691,1751194271836,-671.05,0.00027945,3]
[368514692,1751194271847,-490.0,0.00027945,3]
[368514693,1751194271856,-600.0,0.00027945,3]
[368514694,1751194271866,-274.25,0.00027945,3]
[368514695,1751194271875,-1991.26,0.00027945,3]
[368514696,1751194271885,-600.0,0.00027945,3]
[368514697,1751194271894,-875.56,0.00027945,3]
[368514698,1751194271904,-274.25,0.00027945,3]
[368514699,1751194271913,-490.0,0.00027945,3]
[368514700,1751194271922,-600.0,0.00027945,3]
[368514701,1751194271932,-274.25,0.00027945,3]
[368514702,1751194271942,-490.0,0.00027945,3]
[368514703,1751194271951,-490.0,0.00027945,3]
[368514704,1751194271960,-600.0,0.00027945,3]
[368514705,1751194271973,-490.0,0.00027945,3]
[368514706,1751194271982,-498.72,0.00027945,3]
[368514707,1751194271992,-583.28,0.00027945,3]
[368514708,1751194272001,-3811.43,0.00027945,3]
[368514709,1751194272012,-1354.26,0.00027945,3]
[368514710,1751194272024,-274.25,0.00027945,3]
[368514711,1751194272034,-600.0,0.00027945,3]
[368514712,1751194272043,-585.551072,0.00027945,3]
[368514713,1751194272053,-274.25,0.00027945,3]
[368514714,1751194272062,-671.44,0.00027945,3]
[368514715,1751194272071,-8384.64,0.00027945,3]
[368514716,1751194272080,-1567.24,0.00027945,3]
[368514717,1751194272089,-1471.91,0.00027945,3]
[368514718,1751194272098,-600.0,0.00027945,3]
[368514719,1751194272107,-490.0,0.00027945,3]
[368514720,1751194272116,-274.25,0.00027945,3]
[368514721,1751194272127,-490.0,0.00027945,3]
[368514722,1751194272137,-401.574256,0.00027945,3]
[368514723,1751194272146,-410.400602,0.00027945,3]
[368514724,1751194272155,-600.0,0.00027945,3]
[368514725,1751194272164,-499.48817048,0.00027945,3]
[368514726,1751194272173,-2859.9,0.00027945,3]
[368514727,1751194272182,-274.34971446,0.00027945,3]
[368514728,1751194272192,-583.43,0.00027945,3]
[368514729,1751194272201,-1275.82,0.00027945,3]
[368514730,1751194272211,-490.0,0.00027945,3]
[368514731,1751194272221,-1218.96,0.00027945,3]
[368514732,1751194272231,-490.0,0.00027945,3]
[368514733,1751194272242,-942.64,0.00027945,3]
[368514734,1751194272253,-490.0,0.00027945,3]
[368514735,1751194272263,-2671.04,0.00027945,3]
[368514736,1751194272273,-490.0,0.00027945,3]
[368514737,1751194272283,-490.0,0.00027945,3]
[368514738,1751194272293,-490.0,0.00027945,3]
[368514739,1751194272306,-490.0,0.00027945,3]
[368514740,1751194272316,-2549.36,0.00027945,3]
[368514741,1751194272327,-1387.28,0.00027945,3]
[368514742,1751194272337,-490.0,0.00027945,3]
[368514743,1751194272347,-1639.16,0.00027945,3]
[368514744,1751194272359,-490.0,0.00027945,3]
[368514745,1751194272369,-490.0,0.00027945,3]
[368514746,1751194272378,-2657.31,0.00027945,3]
[368514747,1751194272388,-853.61,0.00027945,3]
[368514748,1751194272397,-760.82,0.00027945,3]
[368514749,1751194272407,-990.85,0.00027945,3]
[368514750,1751194272418,-490.0,0.00027945,3]
[368514751,1751194272430,-523.02,0.00027945,3]
[368514752,1751194272440,-490.0,0.00027945,3]
[368514753,1751194272450,-543.89,0.00027945,3]
[368514754,1751194272462,-490.0,0.00027945,3]
[368514755,1751194272471,-1634.17,0.00027945,3]
[368514756,1751194272480,-888.23,0.00027945,3]
[368514757,1751194272490,-359.48083,0.00027945,3]
[368514758,1751194272500,-490.0,0.00027945,3]
[368514759,1751194272509,-1671.08,0.00027945,3]
[368514760,1751194272518,-1835.93,0.00027945,3]
[368514761,1751194272528,-488.44764,0.00027945,3]
[368514762,1751194272537,-490.0,0.00027945,3]
[368514763,1751194272547,-490.0,0.00027945,3]
[368514764,1751194272556,-1461.04,0.00027945,3]
[368514765,1751194272566,-4544.23,0.00027945,3]
[368514766,1751194272575,-1479.81,0.00027945,3]
[368514767,1751194272585,-490.0,0.00027945,3]
[368514768,1751194272594,-490.0,0.00027945,3]
[368514769,1751194272604,-490.0,0.00027945,3]
[368514770,1751194272613,-490.0,0.00027945,3]
[368514771,1751194272623,-490.0,0.00027945,3]
[368514772,1751194272633,-517.92,0.00027945,3]
[368514773,1751194272644,-3742.15,0.00027945,3]
[368514774,1751194272654,-1735.89,0.00027945,3]
[368514775,1751194272664,-2334.39,0.00027945,3]
[368514776,1751194272673,-490.0,0.00027945,3]
[368514777,1751194272683,-1221.22,0.00027945,3]
[368514778,1751194272693,-3469.82,0.00027945,3]
[368514779,1751194272703,-1554.46,0.00027945,3]
[368514780,1751194272713,-1709.39,0.00027945,3]
[368514781,1751194272722,-490.0,0.00027945,3]
[368514782,1751194272731,-1302.99,0.00027945,3]
[368514783,1751194272741,-490.0,0.00027945,3]
[368514784,1751194272752,-342.462824,0.00027945,3]
[368514785,1751194272761,-490.0,0.00027945,3]
[368514786,1751194272771,-490.0,0.00027945,3]
[368514787,1751194272780,-2739.35,0.00027945,3]
[368514788,1751194272791,-490.0,0.00027945,3]
[368514789,1751194272801,-1449.85,0.00027945,3]
[368514790,1751194272811,-490.0,0.00027945,3]
[368514791,1751194272822,-621.54,0.00027945,3]
[368514792,1751194272833,-403.83972,0.00027945,3]
[368514793,1751194272843,-1404.73,0.00027945,3]
[368514794,1751194272853,-1147.69,0.00027945,3]
[368514795,1751194272862,-1983.22,0.00027945,3]
[368514796,1751194272872,-677.47,0.00027945,3]
[368514797,1751194272881,-490.0,0.00027945,3]
[368514798,1751194272891,-490.0,0.00027945,3]
[368514799,1751194272901,-2990.15,0.00027945,3]
[368514800,1751194272912,-490.0,0.00027945,3]
[368514801,1751194272922,-1337.18,0.00027945,3]
[368514802,1751194272933,-2817.39,0.00027945,3]
[368514803,1751194272943,-552.49,0.00027945,3]
[368514804,1751194272953,-490.0,0.00027945,3]
[368514805,1751194272965,-1850.59,0.00027945,3]
[368514806,1751194272976,-1361.21,0.00027945,3]
[368514807,1751194272986,-507.58485945,0.00027945,3]
[368514808,1751194272997,-3507.44,0.00027945,3]
[368514809,1751194273007,-2114.83,0.00027945,3]
[368514810,1751194273017,-490.0,0.00027945,3]
[368514811,1751194273027,-494.13621758,0.00027945,3]
[368514812,1751194273036,-810.52,0.00027945,3]
[368514813,1751194273048,-314.286784,0.00027945,3]
[368514814,1751194273057,-335.340847,0.00027945,3]
[368514815,1751194273067,-490.0,0.00027945,3]
[368514816,1751194273076,-1952.59,0.00027945,3]
[368514817,1751194273085,-1714.23,0.00027945,3]
[368514818,1751194273095,-490.0,0.00027945,3]
[368514819,1751194273104,-1796.3,0.00027945,3]